bitfinex/quotes_ETHUSD_20251010
["timestamp","ask_amount","ask_price","bid_price","bid_amount"]
[1760105888195,0.01,4338.9,4338.3,2.30500957]
[1760105888196,0.01,4338.9,4338.3,0.6336]
[1760105888411,0.01,4338.9,4338.2,0.4497]
[1760105888647,0.01,4338.9,4338.3,0.6336]
[1760105888944,0.01,4338.9,4338.2,0.4497]
[1760105888945,0.01,4338.9,4338.8,2.30478473]
[1760105889450,0.01,4338.9,4338.8,2.77753257]
[1760105889611,0.01,4338.9,4338.8,2.75448473]
[1760105889955,0.01,4338.9,4338.8,3.38808473]
[1760105890354,0.01,4338.9,4338.8,2.75448473]
[1760105890510,0.01,4338.9,4338.8,2.30478473]
[1760105890955,0.01,4338.9,4338.8,2.7657502]
[1760105891365,0.01,4338.9,4338.8,3.23849804]
[1760105892109,0.01,4339.9,4338.9,0.6336]
[1760105892228,0.01,4339.9,4339.8,2.30425365]
[1760105892432,0.01,4339.9,4339.8,2.96089618]
[1760105892636,0.01,4339.9,4339.8,3.91407657]
[1760105892877,0.01,4339.9,4339.8,2.83077657]
[1760105893518,0.01,4339.9,4339.8,3.9371191]
[1760105893718,0.01,4339.9,4339.8,3.91407657]
[1760105895755,0.01,4339.9,4339.8,4.0523191]
[1760105895952,0.01,4339.9,4339.8,4.02927657]
[1760105896341,23.87100891,4340.0,4339.9,2.93780055]
[1760105896653,23.87100891,4340.0,4339.9,4.31694789]
[1760105896654,1e-08,4340.0,4339.9,4.31694789]
[1760105896953,1e-08,4340.0,4339.9,5.77998989]
[1760105897120,1e-08,4340.0,4339.9,5.75694789]
[1760105898230,1e-08,4340.9,4340.4,2.93753512]
[1760105898433,1e-08,4340.9,4340.8,3.15462281]
[1760105898643,1e-08,4340.9,4340.8,3.88053187]
[1760105898834,1e-08,4340.9,4340.8,4.33023187]
[1760105899030,1e-08,4340.9,4340.8,0.1144]
[1760105899235,1e-08,4340.9,4340.8,2.30372281]
[1760105899544,1e-08,4340.9,4340.8,3.38702281]
[1760105899748,1e-08,4340.9,4340.8,0.6336]
[1760105899945,1e-08,4340.9,4340.8,2.93732281]
[1760105900254,1e-08,4340.9,4340.8,3.38702281]
[1760105900454,1e-08,4340.9,4340.8,3.97914459]
[1760105901080,1e-08,4340.9,4340.8,3.34554459]
[1760105901249,1e-08,4340.9,4340.8,5.89914459]
[1760105901553,1e-08,4340.9,4340.8,5.87610737]
[1760105903865,1e-08,4340.9,4340.8,7.31610737]
[1760105904162,1e-08,4340.9,4340.8,4.31280737]
[1760105904365,1e-08,4340.9,4340.8,3.74372281]
[1760105904548,1e-08,4340.9,4340.8,2.30372281]
[1760105905263,1e-08,4340.9,4339.7,0.4497]
[1760105905478,0.3644,4340.8,4339.2,2.30457227]
[1760105905678,1e-08,4340.9,4339.2,2.30457227]
[1760105905883,1e-08,4340.9,4340.7,2.30377512]
[1760105906061,1e-08,4340.9,4340.8,2.30372281]
[1760105906265,0.00920001,4341.9,4340.1,0.02304094]
[1760105906563,0.00920001,4341.9,4340.3,0.6336]
[1760105906782,0.3644,4341.8,4340.2,0.6336]
[1760105906960,0.3644,4341.8,4339.9,2.30420055]
[1760105907162,0.3644,4341.8,4340.7,2.30372369]
[1760105907326,0.3644,4341.8,4340.0,0.27539006]
[1760105907653,0.3644,4341.8,4340.1,0.4687]
[1760105907828,0.3644,4341.8,4340.2,2.30404128]
[1760105908033,0.3644,4341.8,4340.7,2.30372588]
[1760105908235,0.3644,4341.8,4340.8,2.30369148]
[1760105908449,2.66759282,4341.8,4340.7,2.30376886]
[1760105908626,0.28937928,4341.7,4340.5,2.30383893]
[1760105908828,2.30350594,4341.3,4339.4,2.30446605]
[1760105909155,2.66652906,4341.2,4340.9,0.1144]
[1760105909538,0.363,4341.1,4340.9,0.1144]
[1760105909752,2.66658566,4341.1,4340.9,0.1144]
[1760105909966,0.363,4341.0,4340.9,0.1144]
[1760105910733,0.363,4341.0,4339.2,0.6336]
[1760105910734,2.30368081,4340.9,4340.7,0.1144]
[1760105910935,0.62966808,4340.8,4339.7,2.30429599]
[1760105911160,0.363,4340.8,4339.0,0.4687]
[1760105911335,1.92,4340.6,4338.6,2.30484267]
[1760105911530,2.30388204,4340.5,4339.1,2.31457799]
[1760105911759,0.363,4340.7,4339.1,0.01]
[1760105911760,0.363,4340.4,4339.1,0.01]
[1760105911968,2.66694322,4340.4,4339.1,0.01]
[1760105912131,0.26669432,4340.3,4339.1,0.01]
[1760105912629,2.30446883,4339.4,4339.1,0.01]
[1760105912835,2.30409437,4340.1,4339.1,0.01]
[1760105912836,0.3615,4339.3,4339.1,0.01]
[1760105913263,0.3615,4339.2,4339.1,0.01]
[1760105913780,2.303825,4340.7,4339.5,2.30438749]
[1760105913942,0.3601,4341.6,4340.5,2.30385932]
[1760105914135,0.002,4341.8,4340.8,2.30372281]
[1760105914835,0.002,4341.8,4340.0,0.2173]
[1760105914836,0.3621,4341.8,4340.0,0.2173]
[1760105915039,2.66529545,4341.8,4340.0,0.2173]
[1760105915285,2.30325596,4341.7,4340.6,2.30381018]
[1760105915449,2.66529471,4341.8,4340.0,0.2173]
[1760105915651,0.002,4341.8,4340.0,0.13196]
[1760105915975,2.30366196,4341.0,4339.2,0.4687]
[1760105916180,2.30366196,4341.0,4339.4,0.6336]
[1760105916347,0.3601,4340.8,4339.1,0.01]
[1760105916880,0.3601,4341.4,4339.4,0.6336]
[1760105917081,0.3601,4341.4,4339.2,0.65664572]
[1760105917082,1.92,4341.6,4339.6,0.6336]
[1760105917284,2.30346243,4341.3,4339.6,0.6336]
[1760105917491,0.3601,4341.4,4339.7,0.34067514]
[1760105917783,0.002,4341.8,4340.0,2.30414746]
[1760105917784,2.30519264,4341.8,4340.0,2.30414746]
[1760105917964,2.30519264,4341.8,4339.8,0.4687]
[1760105917965,0.002,4341.8,4340.6,2.30377891]
[1760105918283,0.002,4341.8,4340.7,2.30376762]
[1760105918499,2.30519472,4341.8,4340.7,2.30376762]
[1760105918784,0.3601,4341.6,4340.6,2.30381722]
[1760105918979,0.3601,4341.6,4340.7,2.3037753]
[1760105919337,2.66341042,4341.6,4340.5,2.30383368]
[1760105919544,0.3601,4341.6,4340.7,2.3037511]
[1760105919752,0.3601,4341.6,4339.8,0.4687]
[1760105919960,0.3601,4341.6,4338.7,16.51700762]
[1760105919961,0.3601,4341.1,4339.3,1.92]
[1760105920282,0.3601,4341.1,4339.4,1.16728715]
[1760105920435,2.30524435,4341.8,4340.6,2.3038251]
[1760105920640,0.3621,4341.8,4339.9,2.30420055]
[1760105920869,0.3621,4341.8,4340.7,2.30376645]
[1760105921169,2.30339653,4341.5,4340.8,0.1144]
[1760105921388,2.41764855,4341.7,4340.8,2.41812281]
[1760105921389,0.1144,4341.7,4340.8,2.41812281]
[1760105921539,0.3621,4341.8,4340.8,0.1144]
[1760105921743,2.30338728,4341.5,4340.8,0.1144]
[1760105922235,0.48831121,4341.7,4340.8,0.1144]
[1760105922440,0.5813,4341.8,4340.8,0.1144]
[1760105922640,2.30325439,4341.7,4340.8,0.1144]
[1760105922949,0.5087,4340.9,4340.8,0.1144]
[1760105923470,2.81236974,4340.9,4340.8,0.1144]
[1760105923636,3.09360671,4340.9,4340.8,0.1144]
[1760105923838,3.09360671,4340.9,4339.1,0.01]
[1760105923839,0.78993697,4340.9,4339.1,0.01]
[1760105924153,2.30405932,4340.2,4339.9,0.1152]
[1760105924353,1.92,4340.0,4339.1,0.01]
[1760105924540,0.2206,4339.9,4339.1,0.01]
[1760105924963,0.48785159,4340.2,4339.2,2.30457227]
[1760105925162,1.92,4340.8,4339.9,2.30418762]
[1760105925338,0.56298322,4340.9,4339.4,2.30446605]
[1760105925339,0.24829832,4340.7,4339.4,2.30446605]
[1760105925540,0.0752,4340.9,4339.3,0.4687]
[1760105925740,0.4314,4340.8,4339.8,2.30424966]
[1760105926151,0.4314,4340.8,4339.1,0.01]
[1760105926381,4.65512721,4340.8,4339.8,2.30420063]
[1760105926764,4.65512721,4340.8,4339.1,0.01]
[1760105926765,0.4314,4340.8,4339.9,2.30417759]
[1760105927176,2.73516632,4340.8,4339.6,2.30435822]
[1760105927366,0.4314,4340.8,4340.0,2.30413465]
[1760105927579,1.92,4340.7,4339.8,2.30421204]
[1760105927992,4.22380296,4340.7,4339.5,2.30438692]
[1760105928179,2.30300296,4340.7,4339.7,2.30425975]
[1760105928488,0.2809603,4340.6,4339.2,2.30456117]
[1760105928678,2.3038032,4340.7,4339.1,0.01]
[1760105928877,4.2238032,4340.7,4339.7,2.30429922]
[1760105929257,0.0752,4340.9,4339.2,2.30457227]
[1760105929454,0.4314,4340.6,4339.1,0.01]
[1760105929708,0.4314,4340.6,4339.9,2.30417308]
[1760105929893,0.0752,4340.9,4340.0,0.02304147]
[1760105930060,0.0752,4340.9,4340.5,2.30384299]
[1760105930256,0.0752,4340.9,4340.3,2.30397784]
[1760105930476,0.0752,4340.9,4339.7,0.4448]
[1760105930672,0.0752,4340.9,4339.1,0.6436]
[1760105930673,0.0752,4340.9,4339.1,0.01]
[1760105930891,0.0752,4340.9,4339.3,2.30451916]
[1760105931092,0.0752,4340.9,4339.4,0.33929192]
[1760105931398,0.0752,4340.9,4339.5,0.02304412]
[1760105931593,0.0752,4340.9,4340.4,2.30388554]
[1760105931787,0.0752,4340.9,4339.7,2.30425504]
[1760105931957,0.0752,4340.9,4340.3,2.30395467]
[1760105932160,0.0752,4340.9,4340.0,2.30411147]
[1760105932356,0.0752,4340.9,4339.6,0.4448]
[1760105932584,0.0752,4340.9,4340.3,2.30398402]
[1760105932983,2.73517348,4340.8,4339.0,0.4448]
[1760105933190,0.0752,4340.9,4339.3,2.30451916]
[1760105933371,0.0752,4340.9,4339.7,0.6336]
[1760105933593,0.0752,4340.9,4340.7,2.30377221]
[1760105933883,0.0752,4340.9,4340.8,2.32676003]
[1760105934226,0.0752,4340.9,4340.8,2.88596003]
[1760105934580,0.0752,4340.9,4340.8,3.51956003]
[1760105934778,0.0752,4340.9,4340.8,4.0788583]
[1760105934979,0.002,4341.8,4341.7,2.30324527]
[1760105935223,0.002,4341.8,4341.7,2.41764527]
[1760105937614,0.002,4341.8,4341.7,0.1144]
[1760105937976,0.002,4341.8,4341.7,2.41764527]
[1760105938192,0.002,4341.8,4341.7,2.85484527]
[1760105938886,0.002,4341.8,4341.7,0.1144]
[1760105939918,0.002,4341.8,4341.7,2.41764527]
[1760105940281,0.002,4341.8,4341.7,2.74044527]
[1760105940521,0.002,4341.8,4341.7,2.92202401]
[1760105940680,0.002,4341.8,4341.7,3.35922401]
[1760105940888,0.002,4341.8,4341.7,2.92202401]
[1760105941351,0.002,4341.8,4341.7,3.35922401]
[1760105941725,0.002,4341.8,4341.7,2.92202401]
[1760105942464,0.002,4341.8,4341.7,0.1144]
[1760105942661,19.01168189,4341.8,4341.7,1e-08]
[1760105942826,19.4993235,4341.8,4341.7,1e-08]
[1760105943027,5.28713383,4341.8,4341.7,1e-08]
[1760105943254,4.79949222,4341.8,4341.7,1e-08]
[1760105944125,2.4963,4341.8,4341.7,1e-08]
[1760105944332,2.73099222,4341.8,4341.7,1e-08]
[1760105944643,0.4278,4341.8,4341.7,1e-08]
[1760105944857,0.002,4341.8,4341.7,1e-08]
[1760105945053,0.5771,4341.8,4341.7,0.11440001]
[1760105945389,2.88029222,4341.8,4341.7,0.11440001]
[1760105945553,3.16924144,4341.8,4341.7,0.11440001]
[1760105945749,5.08924144,4341.8,4341.7,1e-08]
[1760105947972,5.57640424,4341.8,4341.7,1e-08]
[1760105948176,6.21000424,4341.8,4341.7,1e-08]
[1760105948950,6.8188083,4341.8,4341.7,1e-08]
[1760105949251,6.21000424,4341.8,4341.7,1e-08]
[1760105949561,6.21000424,4341.8,4339.1,0.011]
[1760105949562,2.30452042,4339.3,4339.1,0.011]
[1760105949763,2.52637227,4339.2,4339.1,0.011]
[1760105949977,2.86687227,4339.2,4339.1,0.011]
[1760105950154,0.5623,4339.2,4339.1,0.011]
[1760105950359,2.86607227,4339.2,4339.1,0.011]
[1760105951043,3.1526795,4339.2,4339.1,0.011]
[1760105951244,5.0726795,4339.2,4339.1,0.011]
[1760105952068,5.7062795,4339.2,4339.1,1e-08]
[1760105952270,6.19241367,4339.2,4339.1,1e-08]
[1760105952868,6.79888239,4339.2,4339.1,1e-08]
[1760105953351,6.19241367,4339.2,4339.1,1e-08]
[1760105953984,5.55881367,4339.2,4339.1,1e-08]
[1760105954186,5.0726795,4339.2,4339.1,1e-08]
[1760105954570,5.7062795,4339.2,4339.1,1e-08]
[1760105954882,6.19037608,4339.2,4339.1,1e-08]
[1760105955085,5.7062795,4339.2,4339.1,1e-08]
[1760105955448,5.0726795,4339.2,4339.1,1e-08]
[1760105955783,3.1526795,4339.2,4339.1,1e-08]
[1760105956084,0.2335,4339.6,4339.1,1e-08]
[1760105956285,0.3273,4339.2,4339.1,1e-08]
[1760105956448,2.63187227,4339.2,4339.1,1e-08]
[1760105960093,0.3273,4339.2,4339.1,1e-08]
[1760105960395,2.63187227,4339.2,4339.1,1e-08]
[1760105961259,4.55187227,4339.2,4339.1,1e-08]
[1760105962693,2.2473,4339.2,4339.1,1e-08]
[1760105963097,0.3273,4339.2,4339.1,1e-08]
[1760105963732,2.63187227,4339.2,4339.1,1e-08]
[1760105964028,2.2473,4339.2,4339.1,1e-08]
[1760105964428,4.55187227,4339.2,4339.1,1e-08]
[1760105964738,2.2473,4339.2,4339.1,1e-08]
[1760105964942,4.55187227,4339.2,4339.1,1e-08]
[1760105965614,2.2473,4339.2,4339.1,1e-08]
[1760105966010,0.3273,4339.2,4339.1,1e-08]
[1760105966694,2.63187227,4339.2,4339.1,1e-08]
[1760105966922,0.3273,4339.2,4339.1,1e-08]
[1760105967445,0.4425,4339.7,4339.1,1e-08]
[1760105967591,0.1152,4340.1,4339.2,2.30452789]
[1760105967947,0.4602,4340.1,4339.4,0.1152]
[1760105968232,2.30454954,4339.3,4339.1,1e-08]
[1760105968431,2.30457227,4339.2,4339.1,1e-08]
[1760105968635,4.56957227,4339.2,4339.1,1e-08]
[1760105969992,5.03014568,4339.2,4339.1,1e-08]
[1760105971505,5.03014568,4339.2,4338.1,1e-08]
[1760105971728,2.5536,4338.1,4337.1,0.0065]
[1760105971897,4.43893497,4337.2,4337.1,0.0065]
[1760105972295,4.78183497,4337.2,4337.1,0.0065]
[1760105973131,2.477,4337.2,4337.1,0.0065]
[1760105973300,4.78263497,4337.2,4337.1,0.0065]
[1760105974705,2.477,4337.2,4337.1,0.0065]
[1760105974901,0.2146,4337.5,4337.1,0.0065]
[1760105975236,0.3424,4337.2,4337.1,0.0065]
[1760105975811,0.2156,4338.3,4337.1,0.0065]
[1760105976213,1.92,4338.2,4337.1,0.0065]
[1760105976431,1.92,4338.2,4337.1,2.31216344]
[1760105976739,2.76716932,4339.2,4337.2,0.23121634]
[1760105976740,0.2156,4338.7,4337.2,0.23121634]
[1760105976947,0.3414,4338.8,4337.1,0.4658]
[1760105977103,0.3414,4338.8,4337.8,2.30526556]
[1760105977302,0.3414,4338.8,4337.1,0.4658]
[1760105977836,2.76718603,4339.2,4337.1,0.4658]
[1760105977837,0.3414,4339.1,4338.1,2.30514626]
[1760105978040,0.3414,4339.1,4337.1,0.4658]
[1760105978241,0.3414,4339.1,4337.4,2.30552865]
[1760105978403,0.3414,4339.1,4338.3,2.30503689]
[1760105978628,0.3414,4339.1,4338.4,2.30498286]
[1760105978833,0.3414,4339.1,4338.4,2.30495584]
[1760105979042,0.3414,4339.1,4337.6,0.02305422]
[1760105979043,0.002,4339.2,4338.1,0.2173]
[1760105979242,0.002,4339.2,4337.8,0.48235316]
[1760105979482,0.002,4339.2,4338.6,2.30488215]
[1760105980050,0.002,4339.2,4338.8,0.1152]
[1760105980655,0.3414,4339.1,4338.8,0.1152]
[1760105981067,0.3414,4339.0,4338.8,0.1152]
[1760105981378,0.3414,4338.9,4338.8,0.1152]
[1760105981780,0.002,4339.2,4338.8,0.1152]
[1760105981986,0.3434,4339.2,4338.8,0.1152]
[1760105982132,2.30473161,4338.9,4338.8,0.1152]
[1760105982363,4.56613161,4338.9,4338.8,0.1152]
[1760105982545,2.30496869,4338.5,4337.1,0.0065]
[1760105982744,0.002,4339.2,4337.2,0.48235634]
[1760105982957,0.002,4339.2,4337.3,0.6336]
[1760105983169,0.002,4339.2,4338.4,2.30497812]
[1760105983354,2.3065734,4339.2,4338.3,2.30504364]
[1760105983556,0.3434,4339.2,4337.4,0.79980641]
[1760105983759,0.3434,4339.2,4338.4,2.30495189]
[1760105983958,0.3434,4339.2,4337.4,0.79980641]
[1760105984274,2.30479807,4338.8,4337.1,0.0065]
[1760105984456,0.3414,4339.1,4337.1,0.0065]
[1760105984659,2.30497525,4338.5,4337.1,0.0065]
[1760105984897,2.30489105,4338.6,4337.4,2.30549476]
[1760105985093,2.30499113,4338.5,4337.6,2.3054092]
[1760105985371,0.3414,4338.7,4337.4,2.3055282]
[1760105985668,0.3414,4338.7,4337.1,0.0065]
[1760105985843,2.30499723,4338.4,4337.1,0.0065]
[1760105986044,2.30562708,4337.3,4337.1,0.0065]
[1760105986270,2.3051975,4338.1,4337.1,0.0065]
[1760105986438,0.3414,4338.3,4337.1,0.0065]
[1760105986439,2.30559192,4337.3,4337.1,0.0065]
[1760105986631,0.3414,4337.8,4337.1,0.0065]
[1760105986831,0.48632272,4338.5,4337.1,0.0065]
[1760105987047,0.3414,4338.5,4337.2,2.30563497]
[1760105987234,0.3414,4338.5,4337.1,0.4658]
[1760105987437,0.002,4339.2,4337.3,0.6336]
[1760105987638,0.002,4339.2,4338.2,2.30506092]
[1760105987853,0.002,4339.2,4338.3,0.0230505]
[1760105988050,0.002,4339.2,4338.5,2.30489595]
[1760105988267,0.002,4339.2,4338.3,2.30503359]
[1760105988268,0.002,4339.2,4338.6,2.30487664]
[1760105988490,0.002,4339.2,4338.1,2.52245002]
[1760105988790,0.002,4339.2,4338.2,0.295815]
[1760105988990,0.002,4339.2,4338.2,0.513115]
[1760105989138,0.002,4339.2,4338.5,2.30493335]
[1760105989565,0.002,4339.2,4337.4,0.3405035]
[1760105989566,2.30462666,4339.1,4337.8,2.30530307]
[1760105989776,0.002,4339.2,4337.4,0.3405035]
[1760105989777,0.3414,4339.0,4337.5,0.6336]
[1760105989977,0.3414,4339.0,4337.4,0.4357]
[1760105990192,0.002,4339.2,4337.4,0.4357]
[1760105990357,2.30478148,4338.9,4337.4,0.4357]
[1760105990700,2.30661136,4339.2,4337.4,0.4357]
[1760105990853,0.26680114,4339.2,4337.5,2.3054755]
[1760105991219,2.30466333,4339.1,4338.2,2.30510211]
[1760105991473,2.30661523,4339.2,4338.3,2.30503455]
[1760105991771,2.30661523,4339.2,4338.4,2.30498593]
[1760105991772,0.002,4339.2,4338.4,2.30498593]
[1760105992273,2.30463015,4339.1,4338.0,2.30520569]
[1760105992488,0.002,4339.0,4338.7,0.1152]
[1760105992678,0.3414,4338.9,4337.1,0.0075]
[1760105992840,2.30512095,4338.2,4338.0,0.1152]
[1760105993535,0.1152,4338.7,4338.0,0.1152]
[1760105994164,0.002,4339.0,4338.4,0.1152]
[1760105994378,0.002,4339.0,4338.7,0.1152]
[1760105994665,0.0012,4339.0,4338.7,0.1152]
[1760105994866,0.3426,4339.0,4338.7,0.1152]
[1760105995182,0.0012,4339.0,4338.7,0.1152]
[1760105996382,0.0012,4339.0,4338.7,2.42003705]
[1760105996678,0.0012,4339.0,4338.7,0.1152]
[1760105997196,0.0012,4339.0,4338.8,0.02304784]
[1760105997510,0.0012,4339.0,4338.9,0.1152]
[1760105998096,0.0012,4339.0,4338.9,2.44297892]
[1760105998439,0.0012,4339.0,4338.9,0.13824731]
[1760105998639,0.0012,4339.0,4337.7,0.02305369]
[1760105998845,0.0012,4339.0,4337.9,2.77581319]
[1760105998846,2.30588793,4339.0,4337.9,2.77581319]
[1760105999042,2.30588793,4339.0,4338.1,2.30515663]
[1760105999248,0.0012,4339.0,4338.0,0.27758132]
[1760105999413,0.0012,4339.0,4338.3,2.30502824]
[1760105999895,0.0012,4339.0,4338.6,2.30487919]
[1760106000095,0.0012,4339.0,4338.7,0.02304837]
[1760106000294,0.0012,4339.0,4338.4,2.52229547]
[1760106000295,0.0012,4339.0,4338.4,2.30496929]
[1760106000496,0.0012,4339.0,4337.9,0.4706]
[1760106000795,0.0012,4339.0,4338.9,2.30473161]
[1760106000997,0.002,4339.2,4338.9,2.30473161]
[1760106000998,0.002,4339.2,4339.1,2.93822538]
[1760106001332,0.002,4339.7,4339.6,2.30435984]
[1760106001529,0.002,4339.7,4339.6,2.93795984]
[1760106001731,0.002,4339.7,4339.6,3.40855984]
[1760106002264,0.002,4339.7,4339.5,2.30439717]
[1760106002465,0.002,4339.7,4339.6,2.30435984]
[1760106002832,0.002,4339.7,4339.3,0.4706]
[1760106003055,0.002,4339.7,4338.7,0.4706]
[1760106003254,0.002,4339.7,4338.3,2.93865036]
[1760106003455,0.002,4339.7,4338.3,2.30505036]
[1760106003456,2.30436125,4339.6,4338.3,2.30505036]
[1760106003660,0.002,4339.7,4338.4,0.02304997]
[1760106003867,2.30462053,4339.2,4337.6,0.4706]
[1760106004066,0.4694,4339.6,4336.1,0.01]
[1760106004067,0.4694,4339.1,4336.1,0.01]
[1760106004242,2.30473161,4338.9,4336.3,2.98420114]
[1760106004440,0.4694,4339.1,4336.9,2.30578381]
[1760106004441,2.3051798,4338.1,4336.9,2.30578381]
[1760106004641,0.93881316,4338.8,4336.3,0.6781]
[1760106004871,0.4694,4338.2,4336.8,2.30579899]
[1760106005168,0.4694,4338.2,4336.4,2.30605086]
[1760106005472,0.4694,4338.2,4336.1,0.01]
[1760106005632,0.4694,4338.7,4336.5,0.4736]
[1760106005833,1.92,4338.6,4336.8,0.4706]
[1760106006083,0.46941567,4338.6,4337.2,2.30563238]
[1760106006293,2.30510007,4338.3,4337.3,2.32862716]
[1760106006437,2.30499919,4338.4,4337.3,0.02305581]
[1760106006790,2.30503396,4338.4,4337.4,2.30552865]
[1760106006951,0.4694,4339.3,4337.5,0.02305475]
[1760106007157,2.30482297,4338.8,4337.8,2.30531605]
[1760106007363,0.4694,4338.8,4337.8,0.5081336]
[1760106007580,2.30487988,4338.7,4337.0,0.6336]
[1760106007786,0.4694,4338.8,4337.0,0.6336]
[1760106007967,2.30491261,4338.6,4337.7,2.30535974]
[1760106008177,2.30488725,4338.7,4337.8,2.3053089]
[1760106008492,0.4694,4338.8,4337.2,2.77622752]
[1760106008691,2.305012,4338.4,4338.1,0.1152]
[1760106008910,2.40620691,4339.4,4336.3,0.8411]
[1760106008911,2.30544045,4337.6,4336.3,0.2075]
[1760106009112,1.92,4339.1,4336.1,0.4806]
[1760106009113,2.3055759,4337.4,4337.1,0.1227]
[1760106009573,2.30559103,4337.3,4337.1,0.1227]
[1760106009762,0.1152,4337.8,4337.1,0.1227]
[1760106009963,0.4694,4337.7,4337.1,0.1227]
[1760106010790,2.30542235,4337.6,4337.1,0.1227]
[1760106011098,0.4694,4337.5,4337.1,0.1227]
[1760106011299,2.30558181,4337.3,4337.1,0.0075]
[1760106011498,2.30563497,4337.2,4337.1,0.0075]
[1760106011887,2.77503497,4337.2,4337.1,0.0075]
[1760106013703,4.69503497,4337.2,4337.1,1e-08]
[1760106013887,2.30595397,4336.6,4336.5,1e-08]
[1760106014199,2.71162466,4336.6,4336.5,1e-08]
[1760106014363,5.10102466,4336.6,4336.5,1e-08]
[1760106015819,20.00974315,4336.6,4336.5,1e-08]
[1760106016162,2.30616668,4336.2,4336.1,1e-08]
[1760106016599,4.69476668,4336.2,4336.1,1e-08]
[1760106016798,4.98376346,4336.2,4336.1,1e-08]
[1760106017229,0.4694,4336.2,4336.1,1e-08]
[1760106017429,2.3894,4336.7,4336.1,1e-08]
[1760106017624,0.4694,4336.2,4336.1,1e-08]
[1760106018936,2.77556668,4336.2,4336.1,1e-08]
[1760106019241,0.4694,4336.2,4336.1,1e-08]
[1760106019427,0.4694,4337.3,4336.1,1e-08]
[1760106019737,2.30589273,4336.8,4336.1,0.2306319]
[1760106019944,0.4694,4336.7,4336.1,1e-08]
[1760106020501,2.30616668,4336.2,4336.1,1e-08]
[1760106021016,2.77556668,4336.2,4336.1,1e-08]
[1760106021400,0.4694,4336.2,4336.1,1e-08]
[1760106021605,2.77556668,4336.2,4336.1,1e-08]
[1760106021831,2.30606132,4336.4,4336.1,1e-08]
[1760106021832,2.30598842,4336.6,4336.1,1e-08]
[1760106022105,14.90871849,4337.3,4336.1,1e-08]
[1760106022106,14.90871849,4337.9,4336.1,1e-08]
[1760106022404,0.4694,4337.5,4336.1,1e-08]
[1760106022609,1.92,4337.4,4336.1,1e-08]
[1760106022833,2.3058871,4336.8,4336.1,1e-08]
[1760106023037,2.30607344,4336.4,4336.1,1e-08]
[1760106023242,2.30595397,4336.6,4336.1,1e-08]
[1760106023418,2.77547327,4336.4,4336.1,1e-08]
[1760106023616,0.4694,4336.4,4336.1,1e-08]
[1760106023826,0.4694,4336.3,4336.1,1e-08]
[1760106024021,2.30616668,4336.2,4336.1,1e-08]
[1760106024338,2.42136668,4336.2,4336.1,1e-08]
[1760106024556,3.30789875,4336.2,4336.1,1e-08]
[1760106024923,0.1152,4336.2,4336.1,1e-08]
[1760106025112,0.4694,4337.2,4336.1,1e-08]
[1760106025315,2.30584464,4336.9,4336.1,2.42141195]
[1760106025513,2.30585837,4336.8,4336.1,0.11520001]
[1760106025924,0.1152,4337.1,4336.1,0.11520001]
[1760106026560,0.1152,4337.6,4336.9,0.1152]
[1760106026771,0.1152,4337.6,4336.9,2.4209889]
[1760106026966,0.4694,4338.6,4337.0,0.7357563]
[1760106027112,0.1152,4338.8,4337.5,0.1152]
[1760106027313,2.30488796,4338.7,4338.2,0.1152]
[1760106027562,0.4443,4338.7,4338.2,0.1152]
[1760106027767,2.30501333,4338.4,4338.2,0.1152]
[1760106028470,2.74931333,4338.4,4338.2,0.1152]
[1760106028636,0.4443,4338.3,4336.4,2.30606032]
[1760106028837,0.4443,4338.3,4337.8,0.1152]
[1760106029073,0.4443,4338.2,4336.5,0.4376]
[1760106029370,0.4443,4338.2,4337.6,0.1152]
[1760106029536,0.1152,4338.4,4337.6,0.1152]
[1760106029736,0.01,4338.9,4337.4,0.4376]
[1760106029980,2.30485812,4338.7,4338.0,0.1152]
[1760106030264,0.1152,4338.8,4338.0,0.1152]
[1760106030265,2.30489235,4338.6,4338.0,0.1152]
[1760106030621,2.30494718,4338.5,4338.0,0.1152]
[1760106030817,2.30504328,4338.4,4338.0,0.1152]
[1760106031061,0.90528836,4338.4,4337.0,2.30574129]
[1760106031231,2.30505036,4338.3,4337.7,0.1152]
[1760106031467,2.30521121,4338.0,4337.7,0.1152]
[1760106031653,0.5595,4338.4,4337.7,0.1152]
[1760106032222,2.30510382,4338.2,4337.7,0.1152]
[1760106032423,2.30506071,4338.3,4337.7,0.1152]
[1760106032623,0.5595,4338.4,4337.7,0.1152]
[1760106032833,2.86450394,4338.4,4337.7,0.1152]
[1760106033167,0.5595,4338.4,4337.7,0.1152]
[1760106033365,0.1152,4338.4,4337.7,0.1152]
[1760106033667,0.1152,4338.4,4337.8,2.30530854]
[1760106033955,2.7511973,4338.6,4336.0,4.22625489]
[1760106033956,0.002,4338.6,4338.0,2.42038759]
[1760106034136,0.002,4338.6,4338.3,2.30503894]
[1760106034332,0.002,4338.6,4338.4,2.30497003]
[1760106034634,0.002,4338.6,4338.3,0.1152]
[1760106036542,0.002,4338.6,4338.4,0.02304997]
[1760106036762,0.002,4338.6,4338.3,0.1152]
[1760106036937,0.002,4338.6,4338.1,0.2141]
[1760106036938,0.002,4338.6,4338.5,2.4201441]
[1760106037138,0.002,4338.6,4338.5,2.89497386]
[1760106037382,0.002,4338.6,4338.5,3.21737386]
[1760106037582,0.01,4339.9,4339.4,2.30446605]
[1760106037766,0.01,4339.9,4339.4,2.93806605]
[1760106037967,0.01,4339.9,4339.4,3.39871071]
[1760106038281,0.002,4341.8,4340.0,2.93774746]
[1760106038445,0.002,4341.8,4340.6,2.30382896]
[1760106038646,0.0012,4340.7,4340.4,2.30389209]
[1760106038845,0.0012,4340.7,4340.1,0.2121]
[1760106039259,0.0012,4340.7,4340.6,2.30382896]
[1760106039476,0.0012,4340.7,4340.6,2.64645095]
[1760106039684,0.0012,4340.7,4340.6,2.66948923]